bitfinex/quotes_ETHUSD_20250720
["timestamp","ask_amount","ask_price","bid_price","bid_amount"]
[1753003519569,0.002,3706.5,3706.4,5.4666198]
[1753003519862,0.002,3706.5,3706.4,9.6826198]
[1753003520694,0.002,3706.5,3706.4,9.3623198]
[1753003521495,0.002,3706.5,3706.4,9.6826198]
[1753003523107,0.002,3706.5,3706.4,9.3623198]
[1753003523472,0.002,3706.5,3706.4,5.1463198]
[1753003523690,0.002,3706.5,3706.4,9.6806198]
[1753003524703,0.002,3706.5,3706.4,9.3603198]
[1753003525008,0.002,3706.5,3706.4,6.66228398]
[1753003525507,0.4664,3706.5,3706.4,4.214]
[1753003525704,2.69807811,3706.4,3706.2,0.1344]
[1753003525891,2.69997805,3706.5,3706.3,4.214]
[1753003526268,0.002,3706.5,3706.2,0.1344]
[1753003526476,0.002,3706.5,3705.6,1.124]
[1753003526477,2.69830339,3706.1,3705.8,0.1344]
[1753003526673,0.4644,3706.0,3705.9,4.214]
[1753003526901,3.16272919,3706.0,3705.8,0.1344]
[1753003527094,3.16272919,3706.0,3705.9,4.214]
[1753003528001,3.16274121,3706.0,3705.9,4.214]
[1753003528714,0.1344,3705.9,3705.3,0.1354]
[1753003528884,2.69847266,3705.8,3705.4,4.214]
[1753003529079,0.4693,3705.7,3705.4,4.214]
[1753003529492,0.4693,3705.6,3705.4,4.214]
[1753003529686,2.69854633,3705.7,3705.3,0.1354]
[1753003529891,0.4693,3705.5,3705.4,4.214]
[1753003531697,0.4693,3705.5,3705.3,0.1354]
[1753003531889,0.4693,3705.4,3705.3,0.1354]
[1753003532090,0.4693,3705.4,3705.3,4.3494]
[1753003534333,0.4693,3705.4,3705.3,0.001]
[1753003534622,3.30246396,3705.4,3705.3,0.001]
[1753003534835,3.30246396,3705.4,3705.3,4.215]
[1753003534978,3.30246396,3705.4,3705.3,0.001]
[1753003536132,33.30246396,3705.4,3705.3,0.001]
[1753003536334,33.55377464,3705.4,3705.3,0.001]
[1753003537024,7.10377464,3705.4,3705.3,0.001]
[1753003537566,37.10377464,3705.4,3705.3,0.001]
[1753003537765,37.35507016,3705.4,3705.3,1e-08]
[1753003540362,41.56907016,3705.4,3705.3,1e-08]
[1753003540517,37.10377464,3705.4,3705.3,1e-08]
[1753003540854,0.85501068,3705.4,3705.3,1e-08]
[1753003541069,36.55377464,3705.4,3705.3,1e-08]
[1753003542139,6.55377464,3705.4,3705.3,1e-08]
[1753003542312,40.76777464,3705.4,3705.3,1e-08]
[1753003543461,40.51646396,3705.4,3705.3,1e-08]
[1753003543853,10.51646396,3705.4,3705.3,1e-08]
[1753003544063,7.8177,3705.4,3705.3,1e-08]
[1753003544454,10.51646396,3705.4,3705.3,1e-08]
[1753003545935,40.51646396,3705.4,3705.3,1e-08]
[1753003546165,36.30246396,3705.4,3705.3,1e-08]
[1753003546327,40.51646396,3705.4,3705.3,1e-08]
[1753003546684,45.64093381,3705.4,3705.3,1e-08]
[1753003546831,45.89182136,3705.4,3705.3,1e-08]
[1753003548588,53.79182136,3705.4,3705.3,1e-08]
[1753003549873,49.57782136,3705.4,3705.3,1e-08]
[1753003550079,53.79182136,3705.4,3705.3,1e-08]
[1753003550253,55.41282136,3705.4,3705.3,1e-08]
[1753003550586,53.79182136,3705.4,3705.3,1e-08]
[1753003550886,53.79155579,3705.4,3705.3,1e-08]
[1753003552190,49.21608594,3705.4,3705.3,1e-08]
[1753003552360,44.45308594,3705.4,3705.3,1e-08]
[1753003552562,45.66608594,3705.4,3705.3,1e-08]
[1753003552770,45.41546396,3705.4,3705.3,1e-08]
[1753003552954,48.41546396,3705.4,3705.3,1e-08]
[1753003555821,44.20246396,3705.4,3705.3,1e-08]
[1753003556105,48.41546396,3705.4,3705.3,1e-08]
[1753003556708,38.0344,3705.4,3705.3,1e-08]
[1753003556910,7.9,3705.4,3705.3,1e-08]
[1753003557311,11.06806396,3705.4,3705.3,1e-08]
[1753003557477,41.06806396,3705.4,3705.3,1e-08]
[1753003558409,12.113,3705.4,3705.3,1e-08]
[1753003564117,7.9,3705.4,3705.3,3.76213681]
[1753003564292,7.9,3705.4,3705.3,1.7414357]
[1753003565820,7.9,3705.4,3705.3,1.06330001]
[1753003566197,12.112,3705.5,3705.3,1.06330001]
[1753003566597,12.112,3705.5,3705.3,1e-08]
[1753003566799,0.1344,3705.4,3705.3,1e-08]
[1753003569485,4.3454,3705.4,3705.3,1e-08]
[1753003571512,0.1344,3705.4,3705.3,1e-08]
[1753003571708,4.3444,3705.4,3705.3,1e-08]
[1753003571914,0.1344,3705.4,3705.3,1e-08]
[1753003572122,4.3444,3705.4,3705.3,1e-08]
[1753003572329,0.002,3706.5,3705.4,6.53012792]
[1753003572536,1e-08,3707.3,3707.2,3.8300536]
[1753003572742,1e-08,3707.3,3707.2,10.13640374]
[1753003572892,1e-08,3707.3,3707.2,9.03211385]
[1753003573093,1e-08,3707.3,3707.2,9.16651385]
[1753003573425,1e-08,3707.3,3707.2,9.16551385]
[1753003575030,1e-08,3707.3,3707.2,9.24979377]
[1753003575222,0.002,3708.0,3707.7,2.69708984]
[1753003575416,0.002,3708.0,3707.7,8.70636815]
[1753003575726,0.002,3708.0,3707.7,9.13409726]
[1753003577007,0.002,3708.0,3707.7,4.90809726]
[1753003577212,0.002,3708.0,3707.7,8.81279726]
[1753003577998,0.002,3708.0,3707.7,9.13309726]
[1753003578327,0.002,3708.0,3707.7,8.80979726]
[1753003578834,0.002,3708.0,3707.7,9.13009726]
[1753003578995,0.002,3708.0,3707.7,4.90809726]
[1753003579200,0.002,3708.0,3707.7,9.16706815]
[1753003579431,0.002,3708.0,3707.7,9.14009726]
[1753003579933,0.002,3708.0,3707.7,4.58779726]
[1753003580095,0.002,3708.0,3707.7,2.91576976]
[1753003580300,33.14751709,3707.8,3707.7,0.08427992]
[1753003580619,5.69711042,3707.7,3707.0,4.234]
[1753003580934,2.69729921,3707.5,3707.1,0.0842929]
[1753003581097,30.0,3707.4,3707.2,0.0842929]
[1753003581300,30.4485,3707.4,3707.3,0.0842929]
[1753003581498,3.14580808,3707.4,3707.3,0.0842929]
[1753003581821,0.4485,3707.4,3707.3,0.0842929]
[1753003582509,0.002,3707.8,3707.3,0.0842929]
[1753003582708,32.6971148,3707.7,3707.4,0.0842929]
[1753003582909,0.4485,3707.6,3707.5,0.0842929]
[1753003583814,0.002,3707.8,3707.5,0.0842929]
[1753003584012,0.002,3707.8,3707.7,2.69708984]
[1753003584214,0.002,3707.8,3707.7,3.89603349]
[1753003586254,0.002,3707.8,3707.7,4.3162929]
[1753003587030,0.002,3707.8,3707.7,4.3132929]
[1753003587441,0.002,3707.8,3707.7,7.01038274]
[1753003587640,0.002,3707.8,3707.7,7.33068274]
[1753003587955,0.002,3707.8,3707.7,0.0842929]
[1753003588142,0.002,3707.8,3707.7,4.3122929]
[1753003591357,0.002,3707.8,3707.7,0.0842929]
[1753003591550,0.002,3707.8,3707.7,4.3112929]
[1753003592353,0.002,3707.8,3707.7,5.02557519]
[1753003592577,0.002,3707.8,3707.7,5.15897519]
[1753003593267,0.002,3707.8,3707.7,4.44468255]
[1753003593672,0.002,3707.8,3707.7,4.44168255]
[1753003594756,0.002,3707.8,3707.7,4.43968255]
[1753003595196,0.002,3707.8,3707.7,0.08428255]
[1753003595398,0.002,3707.8,3707.7,4.30528255]
[1753003597613,3.15391709,3707.8,3707.7,0.08428255]
[1753003597783,0.4569,3707.8,3707.7,4.30228255]
[1753003598120,0.002,3707.8,3707.7,4.30228255]
[1753003598723,2.69901709,3707.8,3707.7,4.30128255]
[1753003598926,0.002,3707.8,3707.7,4.30128255]
[1753003599275,0.002,3707.8,3707.7,0.08428255]
[1753003600003,0.002,3707.8,3707.7,2.91577239]
[1753003602719,0.002,3707.8,3707.7,3.89857077]
[1753003603378,0.002,3707.8,3707.7,8.11857077]
[1753003613744,0.002,3707.8,3707.7,8.11856715]
[1753003614429,0.002,3707.8,3707.7,8.10756715]
[1753003614742,0.002,3707.8,3707.7,7.12476877]
[1753003615119,0.002,3707.8,3707.7,7.04048984]
[1753003615618,0.002,3707.8,3707.7,0.1344]
[1753003615818,0.002,3707.8,3707.7,6.90608984]
[1753003616218,0.002,3707.8,3707.7,7.04048984]
[1753003617653,0.002,3707.8,3707.7,4.3434]
[1753003617857,0.467,3707.8,3707.7,7.04048984]
[1753003618554,0.002,3707.8,3707.7,7.04048984]
[1753003619754,0.002,3707.8,3707.7,2.83148984]
[1753003619958,0.5232,3707.8,3707.7,4.208]
[1753003620156,0.5232,3707.8,3707.4,0.1344]
[1753003620360,0.465,3707.7,3707.5,4.208]
[1753003620534,0.0582,3707.8,3707.5,4.208]
[1753003620735,2.69723533,3707.5,3707.4,0.1344]
[1753003620937,3.16227664,3707.5,3707.4,4.208]
[1753003621436,2.75350808,3707.4,3707.3,0.001]
[1753003621683,2.88790808,3707.4,3707.3,0.001]
[1753003621845,0.1344,3707.4,3707.3,0.001]
[1753003622368,0.002,3707.8,3707.3,2.69838084]
[1753003622571,0.002,3707.8,3707.4,4.208]
[1753003622746,0.465,3707.7,3707.4,4.208]
[1753003623177,0.465,3707.6,3707.4,4.208]
[1753003623357,0.002,3707.8,3707.3,0.001]
[1753003623358,2.69903892,3707.8,3707.3,0.001]
[1753003623536,0.465,3707.5,3707.4,4.208]
[1753003624073,0.002,3707.8,3707.4,4.208]
[1753003624569,0.465,3707.7,3707.4,4.208]
[1753003624772,0.002,3707.8,3707.4,4.208]
[1753003624773,0.002,3707.8,3707.7,2.69708984]
[1753003624936,0.002,3707.8,3707.7,8.05586073]
[1753003625132,0.002,3707.8,3707.7,8.34918984]
[1753003627576,0.002,3708.5,3707.8,1.6887]
[1753003627577,1e-08,3708.5,3707.8,1.6887]
[1753003627845,0.002,3708.6,3708.5,2.69650802]
[1753003627846,1e-08,3708.6,3708.5,2.69650802]
[1753003628073,1e-08,3708.6,3708.5,11.0701731]
[1753003628287,1e-08,3708.6,3708.5,7.15550802]
[1753003628449,1e-08,3708.6,3708.5,11.36350802]
[1753003628648,1e-08,3708.6,3708.5,13.34384478]
[1753003632083,1e-08,3708.6,3708.5,9.13584478]
[1753003632283,1e-08,3708.6,3708.5,13.34284478]
[1753003632785,1e-08,3708.6,3708.5,8.81554478]
[1753003633163,1e-08,3708.6,3708.5,13.02254478]
[1753003633360,1e-08,3708.6,3708.5,13.22823884]
[1753003633585,1e-08,3708.6,3708.5,9.02123884]
[1753003633783,1e-08,3708.6,3708.5,13.22823884]
[1753003634087,1e-08,3708.6,3708.5,13.54853884]
[1753003634289,1e-08,3708.6,3708.5,9.34153884]
[1753003634592,1e-08,3708.6,3708.5,13.22823884]
[1753003634796,1e-08,3708.6,3708.5,9.15563884]
[1753003635094,1e-08,3708.6,3708.5,13.36263884]
[1753003635307,1e-08,3708.6,3708.5,9.15563884]
[1753003635482,1e-08,3708.6,3708.5,10.15694478]
[1753003635863,1e-08,3708.6,3708.5,7.03790802]
[1753003636182,1e-08,3708.6,3708.5,2.83090802]
[1753003636510,0.46500001,3708.6,3708.5,0.1344]
[1753003636706,0.46500001,3708.6,3708.5,4.207]
[1753003636861,3.16143532,3708.6,3708.5,4.207]
[1753003637057,3.16143532,3708.6,3708.1,6.6074]
[1753003637299,3.16151068,3708.5,3708.2,4.206]
[1753003637499,0.465,3708.4,3708.1,6.473]
[1753003637663,0.0582,3708.3,3708.2,4.206]
[1753003638162,0.5232,3708.3,3708.2,4.206]
[1753003639591,1e-08,3708.6,3708.2,4.206]
[1753003639592,0.05820001,3708.6,3708.3,2.69659173]
[1753003639797,0.52320001,3708.6,3708.4,4.206]
[1753003640019,1e-08,3708.6,3708.5,2.7234731]
[1753003640297,1e-08,3708.6,3708.5,2.8578731]
[1753003641263,1e-08,3708.6,3708.5,7.04708356]
[1753003641463,1e-08,3708.6,3708.5,7.34041848]
[1753003641696,1e-08,3708.6,3708.5,9.13037999]
[1753003643091,1e-08,3708.6,3708.5,6.08376953]
[1753003643416,1e-08,3708.6,3708.5,5.76346953]
[1753003645585,1e-08,3708.6,3708.5,9.96946953]
[1753003647513,1e-08,3708.6,3708.5,5.76346953]
[1753003647804,1e-08,3708.6,3708.5,8.82686953]
[1753003648022,1e-08,3708.6,3708.5,7.03690802]
[1753003648202,0.46650001,3708.6,3708.5,7.03690802]
[1753003649279,0.46650001,3708.6,3708.5,2.83090802]
[1753003649593,0.46650001,3708.6,3708.5,4.3404]
[1753003650006,0.46650001,3708.6,3708.5,0.1344]
[1753003650210,0.46650001,3708.6,3708.3,0.1344]
[1753003650620,0.46650001,3708.6,3708.4,4.206]
[1753003651389,0.4665,3708.5,3708.3,0.1344]
[1753003651588,0.4665,3708.5,3708.4,4.206]
[1753003652220,0.4665,3708.5,3708.3,0.1344]
[1753003652413,0.4665,3708.5,3708.4,4.206]
[1753003655029,1e-08,3708.6,3708.5,2.69650802]
[1753003655190,1e-08,3708.6,3708.5,3.80240802]
[1753003655809,1e-08,3708.6,3708.5,2.69650802]
[1753003656124,1e-08,3708.6,3708.5,6.90250802]
[1753003658023,1e-08,3708.6,3708.4,0.1344]
[1753003658326,1e-08,3708.6,3708.5,4.205]
[1753003659031,0.46650001,3708.6,3708.5,4.205]
[1753003661431,0.46650001,3708.6,3708.3,0.001]
[1753003661618,0.46650001,3708.6,3708.4,4.205]
[1753003661619,2.69656504,3708.5,3708.4,4.205]
[1753003662028,3.16306504,3708.5,3708.4,4.205]
[1753003662201,2.69658073,3708.4,3708.3,0.001]
[1753003662526,3.22128073,3708.4,3708.3,0.001]
[1753003662914,33.22128073,3708.4,3708.3,0.001]
[1753003663934,3.22128073,3708.4,3708.3,0.001]
[1753003664241,6.77128073,3708.4,3708.3,0.001]
[1753003664422,36.77128073,3708.4,3708.3,0.001]
[1753003664821,36.22128073,3708.4,3708.3,0.001]
[1753003666215,33.5247,3708.4,3708.3,0.001]
[1753003666420,3.6591,3708.4,3708.3,0.001]
[1753003666825,0.6591,3708.4,3708.3,0.001]
[1753003667936,3.35568073,3708.4,3708.3,0.001]
[1753003668122,33.35568073,3708.4,3708.3,0.001]
[1753003669040,3.35568073,3708.4,3708.3,0.001]
[1753003669568,33.35568073,3708.4,3708.3,0.001]
[1753003670060,3.35568073,3708.4,3708.3,0.001]
[1753003671243,0.6591,3708.4,3708.3,0.001]
[1753003671926,3.35568073,3708.4,3708.3,0.001]
[1753003672435,33.35568073,3708.4,3708.3,0.001]
[1753003674777,46.81811765,3708.4,3708.3,0.001]
[1753003675083,46.81811765,3708.4,3708.3,1e-08]
[1753003675866,47.06993025,3708.4,3708.3,1e-08]
[1753003676687,47.06987456,3708.4,3708.3,1e-08]
[1753003676977,51.06987456,3708.4,3708.3,1e-08]
[1753003677186,55.27487456,3708.4,3708.3,1e-08]
[1753003678874,3.30560808,3707.4,3707.3,0.001]
[1753003679043,50.424045,3707.4,3707.3,0.001]
[1753003679377,50.882645,3707.4,3707.3,0.001]
[1753003680770,47.83420808,3707.4,3707.3,0.001]
[1753003681301,47.28420808,3707.4,3707.3,0.001]
[1753003682882,47.22590808,3707.4,3707.3,0.001]
[1753003684184,14.663,3707.4,3707.3,0.001]
[1753003685599,17.36030808,3707.4,3707.3,0.001]
[1753003686998,47.36030808,3707.4,3707.3,0.001]
[1753003688198,17.36030808,3707.4,3707.3,0.001]
[1753003688359,14.663,3707.4,3707.3,0.001]
[1753003688696,14.2044,3707.4,3707.3,0.001]
[1753003688906,11.2044,3707.4,3707.3,0.001]
[1753003689883,13.90170808,3707.4,3707.3,0.001]
[1753003691112,14.36030808,3707.4,3707.3,0.001]
[1753003695361,11.663,3707.4,3707.3,0.001]
[1753003696308,11.2044,3707.4,3707.3,0.001]
[1753003697049,6.9994,3707.4,3707.3,0.001]
[1753003697341,11.2034,3707.4,3707.3,0.001]
[1753003697706,4.3384,3707.4,3707.3,0.001]
[1753003698140,2.83170808,3707.4,3707.3,0.001]
[1753003698438,33.29030808,3707.4,3707.3,0.001]
[1753003699545,33.34860808,3707.4,3707.3,0.001]
[1753003700340,36.34860808,3707.4,3707.3,0.001]
[1753003700720,36.89860808,3707.4,3707.3,0.001]
[1753003705508,6.89860808,3707.4,3707.3,0.001]
[1753003705715,36.89860808,3707.4,3707.3,0.001]
[1753003706752,36.34860808,3707.4,3707.3,0.001]
[1753003711641,36.89860808,3707.4,3707.3,0.001]
[1753003712034,37.15115716,3707.4,3707.3,1e-08]
[1753003712871,37.15115716,3707.4,3704.2,2.69960852]
[1753003712872,1.0965,3705.3,3704.2,2.69960852]
[1753003713023,2.69928954,3704.7,3704.3,0.3203]
[1753003713225,2.69934675,3704.6,3704.0,0.3203]
[1753003713653,6.90134675,3704.6,3704.0,0.3203]
[1753003715077,4.203,3704.6,3704.5,0.3213]
[1753003715230,2.6992922,3704.7,3704.5,0.3213]
[1753003715745,36.71374675,3704.6,3704.5,1e-08]
[1753003715925,37.83384675,3704.6,3704.5,1e-08]
[1753003716123,39.26562685,3704.6,3704.5,1e-08]
[1753003717759,9.26562685,3704.6,3704.5,1e-08]
[1753003718053,39.26562685,3704.6,3704.5,1e-08]
[1753003720077,34.13112685,3704.6,3704.5,1e-08]
[1753003720428,31.4317801,3704.6,3704.5,1e-08]
[1753003720661,1.4317801,3704.6,3704.5,1.06980001]
[1753003721865,4.13112685,3704.6,3704.5,1.06980001]
[1753003723068,4.26552685,3704.6,3704.5,1e-08]
[1753003724501,1.5661801,3704.6,3704.5,1e-08]
[1753003725178,4.26552685,3704.6,3704.5,1e-08]
[1753003725869,1.5661801,3704.6,3704.5,1e-08]
[1753003731282,4.72992685,3704.6,3704.5,1e-08]
[1753003732728,2.0305801,3704.6,3704.5,1e-08]
[1753003732886,1.5661801,3704.6,3704.5,1e-08]
[1753003733325,4.26552685,3704.6,3704.5,1e-08]
[1753003734313,4.72992685,3704.6,3704.5,1e-08]
[1753003737803,2.0305801,3704.6,3704.5,1e-08]
[1753003738131,1.5661801,3704.6,3704.5,1e-08]
[1753003739498,1.5661801,3704.6,3704.5,1.12220001]
[1753003739702,1.5661801,3704.6,3704.5,3.82161963]
[1753003740050,1.4317801,3704.6,3704.5,1.12220001]
[1753003740237,1.4317801,3704.6,3704.5,3.82161963]
[1753003740407,1.4317801,3704.6,3704.5,1.12220001]
[1753003740911,0.4677,3704.6,3704.5,1e-08]
[1753003741111,3.30144675,3704.6,3704.5,1e-08]
[1753003741338,0.6021,3704.6,3704.5,1e-08]
[1753003742037,3.30144675,3704.6,3704.5,1e-08]
[1753003742196,0.1344,3704.6,3704.5,1e-08]
[1753003742537,2.83374675,3704.6,3704.5,1e-08]
[1753003743438,45.10151665,3704.6,3704.5,1e-08]
[1753003744531,51.96651665,3704.6,3704.5,1e-08]
[1753003745352,51.96851665,3704.6,3704.5,1e-08]
[1753003745866,52.66275329,3704.6,3704.5,1e-08]
[1753003746067,56.66275329,3704.6,3704.5,1e-08]
[1753003746625,56.11096353,3704.6,3704.5,1e-08]
[1753003747343,56.11096353,3704.6,3701.0,3.905435]
[1753003747344,0.0141,3704.3,3701.0,3.905435]
[1753003747567,49.98491678,3704.6,3700.0,5.08770872]
[1753003747568,0.0141,3701.0,3700.0,5.08770872]
[1753003747768,5.70248358,3700.3,3700.0,5.08770872]
[1753003747927,2.70365263,3698.7,3698.6,1.0751]
[1753003748126,0.4677,3699.4,3698.6,1.0751]
[1753003748333,2.70336027,3699.1,3698.6,1.0751]
[1753003748556,2.70342529,3699.1,3698.6,1.0751]
[1753003748740,30.0,3699.0,3698.6,1.0751]
[1753003749070,2.70345817,3699.0,3698.6,1.0751]
[1753003749278,2.70357953,3698.8,3697.9,1.0751]
[1753003749575,3.0527699,3699.2,3695.7,2.70577767]
[1753003749576,1.1659,3697.8,3695.7,2.70577767]
[1753003749874,3.0,3697.4,3695.9,0.3203]
[1753003750043,0.55,3698.2,3696.1,1.3954]
[1753003750236,2.70438957,3697.7,3696.5,2.70525871]
[1753003750571,0.4677,3698.7,3696.7,1.0751]
[1753003750875,3.0,3698.5,3696.8,0.34735042]
[1753003751032,3.0,3698.5,3696.9,2.70496902]
[1753003751033,3.0,3698.3,3696.9,2.70496902]
[1753003751232,30.0,3698.2,3697.0,0.3203]
[1753003751452,30.0,3698.2,3697.5,2.70449285]
[1753003751731,5.70416944,3698.0,3697.0,2.84441838]
[1753003751941,30.0,3697.9,3697.0,0.13954]
[1753003752144,30.0,3698.0,3696.7,0.02705115]
[1753003752344,4.7557,3697.9,3696.5,1.1164]
[1753003752570,30.0,3697.8,3696.7,2.70511537]
[1753003752772,2.70427644,3697.9,3696.8,0.71418154]
[1753003752969,3.2536909,3698.7,3697.0,1.1164]
[1753003752970,30.0,3697.8,3697.0,1.1164]
[1753003753129,3.22006628,3698.2,3697.2,2.70474954]
[1753003753456,3.22006628,3698.2,3697.7,0.1352]
[1753003753652,3.22006628,3698.2,3698.0,2.70410195]
[1753003753879,3.22006628,3698.2,3698.1,2.70409129]
[1753003754052,3.22006628,3698.2,3698.1,4.14079129]
[1753003754391,3.22006628,3698.2,3698.1,4.73936165]
[1753003754595,3.22006628,3698.2,3698.1,4.87456165]
[1753003754778,2.70350863,3698.9,3698.1,2.17047036]
[1753003755101,0.1344,3698.6,3698.1,1.4367]
[1753003755292,0.1344,3698.9,3698.3,0.1344]
[1753003755452,0.1344,3698.9,3698.3,2.83832772]
[1753003755653,2.95208247,3699.1,3698.2,0.3203]
[1753003755654,0.4677,3699.5,3698.2,0.3203]
[1753003755889,0.4677,3699.5,3698.1,1.1164]
[1753003755890,2.70343336,3699.0,3698.4,0.1344]
[1753003756060,30.0,3698.9,3698.4,0.1344]
[1753003756593,32.70344894,3699.0,3698.4,0.1344]
[1753003756772,0.6021,3699.1,3698.4,0.1344]
[1753003756773,30.4677,3698.9,3698.4,0.1344]
[1753003756974,30.24842146,3698.8,3698.4,0.1344]
[1753003757281,0.24842146,3698.7,3698.1,1.1164]
[1753003757483,0.38282146,3698.6,3698.1,3.82048857]
[1753003757679,0.1344,3698.6,3698.1,3.82048857]
[1753003758084,0.1344,3698.6,3698.2,0.02704018]
[1753003758259,0.24842146,3699.2,3698.6,2.70366739]
[1753003758459,0.24842146,3699.1,3698.6,2.70366739]
[1753003758682,0.24842146,3699.0,3698.6,2.70366739]
[1753003758880,0.24842146,3699.1,3698.5,2.83818763]
[1753003759082,0.24842146,3699.1,3698.6,2.70372513]
[1753003759388,0.24842146,3699.1,3698.7,2.70364016]
[1753003759696,0.24842146,3699.1,3698.7,0.55418974]
[1753003759897,0.1344,3699.4,3698.8,0.1344]
[1753003760073,0.24842146,3699.3,3699.0,1.1675]
[1753003760276,0.24842146,3699.2,3699.0,1.1675]
[1753003760584,0.1344,3699.4,3699.0,1.1675]
[1753003760793,2.70328396,3699.3,3699.0,1.1675]
[1753003761111,32.83770024,3699.2,3698.6,1.3019]
[1753003761316,0.1344,3699.2,3698.8,2.70352027]
[1753003761609,0.1344,3699.2,3699.0,2.70336434]
[1753003761794,2.95061943,3699.7,3699.0,2.70343295]
[1753003762001,0.1344,3699.5,3698.8,3.15822752]
[1753003762197,0.38208175,3699.5,3698.8,0.4547]
[1753003762405,0.1344,3699.5,3698.8,0.1344]
[1753003762699,2.70315594,3699.4,3698.8,0.1344]
[1753003762900,2.83748426,3699.5,3698.8,2.83797402]
[1753003763079,0.24768175,3699.4,3698.8,2.83797402]
[1753003763278,0.24768175,3699.3,3698.9,2.7035023]
[1753003763479,0.24768175,3699.2,3698.8,2.83796993]
[1753003763805,0.24768175,3699.1,3698.8,2.83796993]
[1753003764002,0.24768175,3699.4,3698.9,2.70343676]
[1753003764197,0.1344,3699.5,3698.9,2.70343676]
[1753003764198,30.24768175,3699.3,3698.9,2.70343676]
[1753003764400,0.24768175,3699.2,3699.0,2.70343265]
[1753003764606,0.1344,3699.5,3699.1,2.70336027]
[1753003764901,0.2475802,3699.4,3699.0,2.70342636]
[1753003765214,0.2475802,3699.3,3698.8,2.83792709]
[1753003765522,0.2475802,3699.2,3698.9,2.70347373]
[1753003765817,0.2475802,3699.2,3698.8,0.1344]
[1753003765818,0.2475802,3699.4,3699.0,2.70342733]
[1753003765994,0.2475802,3699.3,3699.1,2.70334835]
[1753003766201,0.2475802,3699.4,3699.1,2.70334835]
[1753003766400,0.2475802,3699.3,3699.1,2.70334835]
[1753003766597,0.2475802,3699.3,3698.8,0.1344]
[1753003766598,0.24770488,3699.2,3698.8,0.02703579]
[1753003766912,4.1038,3700.2,3698.6,1.1675]
[1753003766913,1.1213,3700.6,3699.6,1.0897]
[1753003767113,0.1344,3700.0,3699.6,1.0897]
[1753003767414,0.24771178,3699.9,3699.6,1.0897]
[1753003767578,0.24795495,3699.8,3699.7,2.70292185]
[1753003767776,0.24795495,3699.8,3699.7,2.83732185]
[1753003768011,0.24795495,3699.8,3699.7,3.15762185]
[1753003768220,0.24795495,3699.8,3699.7,3.82061645]
[1753003768589,0.24795495,3699.8,3699.7,4.91031645]
[1753003769220,0.24795495,3699.8,3699.7,9.22231645]
[1753003769395,0.002,3700.3,3700.2,2.70255661]
[1753003769715,0.25024519,3700.3,3700.1,2.7025606]
[1753003769916,0.24824519,3700.2,3700.1,2.70262965]
[1753003770134,0.24824519,3700.2,3700.0,2.83709474]
[1753003770318,0.24824519,3700.1,3700.0,2.83709474]
[1753003771556,0.24824519,3700.1,3699.7,1.0897]
[1753003771688,0.24824519,3700.0,3699.9,2.70273802]
[1753003771889,0.1364,3700.3,3700.0,2.7026979]
[1753003772087,0.24865676,3700.2,3700.1,2.70262965]
[1753003772397,0.24865676,3700.2,3700.1,3.15732965]
[1753003772596,0.24865676,3700.2,3700.1,3.74333241]
[1753003773004,0.002,3700.3,3700.2,2.70255661]
[1753003773184,0.002,3700.3,3700.2,7.01055661]
[1753003773381,0.25124799,3700.3,3700.2,7.33085661]
[1753003773786,0.25124799,3700.3,3700.2,7.01055661]
[1753003774002,0.002,3700.3,3700.2,7.01055661]
[1753003774937,0.002,3700.3,3700.1,0.1344]
[1753003774938,0.2517254,3700.3,3700.1,4.306]
[1753003775151,0.24971789,3700.2,3700.1,7.00855771]
[1753003775303,0.25004848,3700.2,3700.1,4.306]
[1753003775505,0.25004848,3700.2,3700.1,7.00862965]
[1753003775915,0.25004848,3700.2,3700.1,4.306]
[1753003776306,3.3979206,3700.2,3699.5,2.70300339]
[1753003776526,0.25004848,3700.1,3699.6,2.83736795]
[1753003776728,0.25004848,3700.0,3699.6,0.1344]
[1753003776923,3.28228209,3700.2,3699.6,0.1344]
[1753003776924,0.25004848,3699.9,3699.6,0.1344]
[1753003777136,0.25004848,3699.8,3699.6,0.1344]
[1753003777347,0.25004848,3699.7,3699.6,0.1344]
[1753003778248,0.25004848,3699.7,3699.5,4.304]
[1753003778557,0.25004848,3699.6,3699.5,7.00706798]
[1753003778724,0.25004848,3699.6,3699.5,2.70306798]
[1753003780654,0.25004848,3699.6,3699.5,5.18826665]
[1753003780952,1.0924,3700.2,3699.4,0.1344]
[1753003781164,3.39911786,3700.1,3699.1,1.1537]
[1753003781466,30.25114886,3700.0,3699.4,2.70311595]
[1753003781676,0.25114886,3699.9,3699.4,2.70311595]
[1753003781834,0.25114886,3699.8,3699.4,2.70311595]
[1753003782035,0.25114886,3699.7,3699.1,1.1537]
[1753003782371,0.25114886,3699.7,3699.2,2.70327596]
[1753003782372,0.25114886,3699.6,3699.2,2.70327596]
[1753003782557,0.25113834,3699.5,3699.2,2.70327596]
[1753003782754,0.25113834,3699.4,3699.1,3.85702003]
[1753003782956,0.4453,3699.6,3698.9,4.33]
[1753003783155,0.2511551,3699.5,3698.7,1.1377]
[1753003783356,0.2511551,3699.4,3698.9,4.337]
[1753003783672,0.2511551,3699.3,3698.6,4.336]
[1753003783850,2.70293696,3699.7,3699.0,2.70338489]
[1753003784174,0.25107454,3699.6,3699.0,2.70338489]
[1753003784350,0.25107454,3699.5,3698.9,2.70345455]
[1753003784553,0.25107454,3699.4,3698.9,2.70345455]
[1753003784775,0.25107454,3699.3,3698.9,2.70345455]
[1753003785070,0.4453,3699.4,3698.8,2.70355058]
[1753003785241,0.25099875,3699.3,3698.6,4.336]
[1753003785575,0.25099875,3699.2,3699.0,2.70337512]
[1753003785867,2.70301251,3699.6,3698.9,2.70347974]
[1753003786071,0.25098252,3699.5,3698.9,2.70347974]
[1753003786231,0.25098252,3699.4,3698.9,2.70347974]
[1753003786434,2.70285336,3699.8,3699.0,2.70342527]